[Event "*** Titled Tuesday Blitz"]
[Site "Chess.com"]
[Date "2020.03.03"]
[Round "3"]
[White "MikaelyanArman"]
[Black "MusicCityMaster"]
[Result "1-0"]
[WhiteElo "2625"]
[BlackElo "2381"]
[TimeControl "180+1"]
[EndTime "13:30:38 PST"]
[Termination "MikaelyanArman won by resignation"]

1. e4 {[%clk 0:03:00.9]} 1... e6 {[%clk 0:02:56.9]} 2. d4 {[%clk 0:03:00.3]}
2... d5 {[%clk 0:02:56.7]} 3. Nc3 {[%clk 0:03:00.1]} 3... Bb4 {[%clk 0:02:55.6]}
4. Ne2 {[%clk 0:02:58.3]} 4... dxe4 {[%clk 0:02:54.8]} 5. a3 {[%clk 0:02:58.1]}
5... Bxc3+ {[%clk 0:02:55.2]} 6. Nxc3 {[%clk 0:02:59]} 6... Nf6 {[%clk
0:02:55.2]} 7. Bg5 {[%clk 0:02:44.1]} 7... h6 {[%clk 0:02:30]} 8. Bxf6 {[%clk
0:02:43.3]} 8... Qxf6 {[%clk 0:02:30.2]} 9. Nxe4 {[%clk 0:02:43.1]} 9... Qe7
{[%clk 0:02:27.9]} 10. Bd3 {[%clk 0:02:38.3]} 10... Bd7 {[%clk 0:02:22.3]} 11.
O-O {[%clk 0:02:18.4]} 11... Bc6 {[%clk 0:02:22]} 12. c4 {[%clk 0:02:12.9]}
12... Nd7 {[%clk 0:02:20.3]} 13. Nc3 {[%clk 0:02:02.6]} 13... Nf6 {[%clk
0:02:06.2]} 14. d5 {[%clk 0:02:02.4]} 14... Bd7 {[%clk 0:02:06.6]} 15. Re1
{[%clk 0:01:53.6]} 15... O-O {[%clk 0:02:05.7]} 16. Qf3 {[%clk 0:01:52.3]} 16...
Qc5 {[%clk 0:01:50.2]} 17. b4 {[%clk 0:01:44.6]} 17... Qd4 {[%clk 0:01:49.4]}
18. Rad1 {[%clk 0:01:43.3]} 18... Qh4 {[%clk 0:01:27.2]} 19. g3 {[%clk
0:01:28.8]} 19... Qg4 {[%clk 0:01:20.3]} 20. Qxg4 {[%clk 0:01:27.6]} 20... Nxg4
{[%clk 0:01:20.2]} 21. c5 {[%clk 0:01:22.9]} 21... Rad8 {[%clk 0:01:08.1]} 22.
Bc4 {[%clk 0:01:11.9]} 22... exd5 {[%clk 0:01:01.9]} 23. Nxd5 {[%clk 0:01:11]}
23... c6 {[%clk 0:00:53.3]} 24. Ne7+ {[%clk 0:01:08.1]} 24... Kh8 {[%clk
0:00:53]} 25. Rd6 {[%clk 0:01:08.3]} 25... Be6 {[%clk 0:00:29.5]} 26. Bxe6
{[%clk 0:01:03.8]} 26... fxe6 {[%clk 0:00:27]} 27. Ng6+ {[%clk 0:01:02.7]} 27...
Kh7 {[%clk 0:00:23.2]} 28. Nxf8+ {[%clk 0:01:02]} 28... Rxf8 {[%clk 0:00:23.9]}
29. f4 {[%clk 0:00:55.3]} 29... Nf6 {[%clk 0:00:16.8]} 30. Rexe6 {[%clk
0:00:47.9]} 30... Rf7 {[%clk 0:00:17.2]} 31. Kg2 {[%clk 0:00:44.6]} 31... Nd5
{[%clk 0:00:17.1]} 32. h4 {[%clk 0:00:40.5]} 32... Nc3 {[%clk 0:00:16.1]} 33.
Rd8 {[%clk 0:00:36.8]} 33... h5 {[%clk 0:00:13.1]} 34. Ree8 {[%clk 0:00:33.1]}
34... Nb5 {[%clk 0:00:11.6]} 35. a4 {[%clk 0:00:31.4]} 35... Nc3 {[%clk
0:00:11.2]} 36. a5 {[%clk 0:00:31.9]} 36... a6 {[%clk 0:00:09.3]} 37. Kf3 {[%clk
0:00:31.6]} 37... Nd5 {[%clk 0:00:09.1]} 38. Re5 {[%clk 0:00:26.2]} 38... Nxb4
{[%clk 0:00:07.6]} 39. Rxh5+ {[%clk 0:00:26.1]} 39... Kg6 {[%clk 0:00:08.2]} 40.
Rg5+ {[%clk 0:00:26.3]} 40... Kh7 {[%clk 0:00:08.6]} 41. Re5 {[%clk 0:00:23.1]}
41... Nd5 {[%clk 0:00:08.4]} 42. h5 {[%clk 0:00:22.2]} 42... Nf6 {[%clk
0:00:06.3]} 43. g4 {[%clk 0:00:20.7]} 43... Nd5 {[%clk 0:00:05.7]} 44. f5 {[%clk
0:00:19.5]} 44... Nf6 {[%clk 0:00:05.3]} 45. Kg3 {[%clk 0:00:19.3]} 45... Kh6
{[%clk 0:00:04.4]} 46. Rh8+ {[%clk 0:00:17.5]} 46... Nh7 {[%clk 0:00:04.4]} 47.
Kh4 {[%clk 0:00:16.5]} 47... g5+ {[%clk 0:00:04.3]} 48. hxg6 {[%clk 0:00:15.4]}
1-0

[Event "*** Titled Tuesday Blitz"]
[Site "Chess.com"]
[Date "2020.03.03"]
[Round "3"]
[White "LogoCzar"]
[Black "Fighterman91"]
[Result "1-0"]
[WhiteElo "2485"]
[BlackElo "2712"]
[TimeControl "180+1"]
[EndTime "13:30:41 PST"]
[Termination "LogoCzar won on time"]

1. e4 {[%clk 0:03:00.9]} 1... c5 {[%clk 0:02:59.7]} 2. Nf3 {[%clk 0:02:58.2]}
2... Nc6 {[%clk 0:03:00.3]} 3. d4 {[%clk 0:02:57.8]} 3... cxd4 {[%clk
0:03:00.9]} 4. Nxd4 {[%clk 0:02:58.2]} 4... Nf6 {[%clk 0:03:00.7]} 5. Nc3 {[%clk
0:02:58]} 5... d6 {[%clk 0:03:01.3]} 6. Bc4 {[%clk 0:02:57.3]} 6... e6 {[%clk
0:02:58]} 7. Be3 {[%clk 0:02:57.3]} 7... a6 {[%clk 0:02:57.5]} 8. Bb3 {[%clk
0:02:57]} 8... Bd7 {[%clk 0:02:55.1]} 9. Qe2 {[%clk 0:02:53.6]} 9... b5 {[%clk
0:02:54.7]} 10. a3 {[%clk 0:02:48.7]} 10... Qc7 {[%clk 0:02:47.9]} 11. f4 {[%clk
0:02:48]} 11... Be7 {[%clk 0:02:42.7]} 12. f5 {[%clk 0:02:48]} 12... Nxd4 {[%clk
0:02:28.7]} 13. Bxd4 {[%clk 0:02:47.4]} 13... O-O {[%clk 0:02:23.4]} 14. g4
{[%clk 0:02:42]} 14... Qb7 {[%clk 0:00:55.7]} 15. O-O-O {[%clk 0:02:27.5]} 15...
e5 {[%clk 0:00:39.5]} 16. Bf2 {[%clk 0:02:22.3]} 16... Bc6 {[%clk 0:00:40]} 17.
Rhe1 {[%clk 0:02:04.3]} 17... Nd7 {[%clk 0:00:39.9]} 18. h4 {[%clk 0:01:47]}
18... a5 {[%clk 0:00:31.2]} 19. Bd5 {[%clk 0:01:36.6]} 19... b4 {[%clk
0:00:25.3]} 20. Bxc6 {[%clk 0:01:36.7]} 20... Qxc6 {[%clk 0:00:26.2]} 21. Nd5
{[%clk 0:01:35.7]} 21... Bd8 {[%clk 0:00:26.7]} 22. a4 {[%clk 0:01:06]} 22...
Qxa4 {[%clk 0:00:25.8]} 23. b3 {[%clk 0:00:45]} 23... Qc6 {[%clk 0:00:10.1]} 24.
Kb2 {[%clk 0:00:28.3]} 24... a4 {[%clk 0:00:09.7]} 25. bxa4 {[%clk 0:00:28.4]}
25... Rxa4 {[%clk 0:00:08.3]} 26. Ra1 {[%clk 0:00:28.4]} 26... Nc5 {[%clk
0:00:05.4]} 27. Bxc5 {[%clk 0:00:24.5]} 27... dxc5 {[%clk 0:00:05.4]} 28. Rxa4
{[%clk 0:00:22.2]} 28... Qxa4 {[%clk 0:00:06.1]} 29. Ra1 {[%clk 0:00:22]} 29...
Qd7 {[%clk 0:00:06.1]} 30. g5 {[%clk 0:00:20.7]} 30... Be7 {[%clk 0:00:05.5]}
31. Qc4 {[%clk 0:00:18.3]} 31... Rd8 {[%clk 0:00:05.1]} 32. f6 {[%clk
0:00:15.6]} 32... gxf6 {[%clk 0:00:05.3]} 33. gxf6 {[%clk 0:00:15.6]} 33... Bf8
{[%clk 0:00:05.9]} 34. Rg1+ {[%clk 0:00:12.5]} 34... Kh8 {[%clk 0:00:06.4]} 35.
Qe2 {[%clk 0:00:09.2]} 35... Qa7 {[%clk 0:00:05.7]} 36. Qg4 {[%clk 0:00:04.9]}
36... Bh6 {[%clk 0:00:02.2]} 37. Ne7 {[%clk 0:00:02.1]} 1-0

[Event "*** Titled Tuesday Blitz"]
[Site "Chess.com"]
[Date "2020.03.03"]
[Round "3"]
[White "Sanan_Sjugirov"]
[Black "IMDT02"]
[Result "1-0"]
[WhiteElo "2833"]
[BlackElo "2490"]
[TimeControl "180+1"]
[EndTime "13:30:42 PST"]
[Termination "Sanan_Sjugirov won on time"]

1. e4 {[%clk 0:03:00.9]} 1... c5 {[%clk 0:02:52.5]} 2. Nf3 {[%clk 0:03:00.5]}
2... Nc6 {[%clk 0:02:44.8]} 3. Bb5 {[%clk 0:03:00]} 3... Nf6 {[%clk 0:02:44.8]}
4. Nc3 {[%clk 0:02:59.2]} 4... g6 {[%clk 0:02:44.7]} 5. e5 {[%clk 0:02:56.9]}
5... Ng4 {[%clk 0:02:44.8]} 6. Bxc6 {[%clk 0:02:57]} 6... dxc6 {[%clk
0:02:45.4]} 7. h3 {[%clk 0:02:54.9]} 7... Nh6 {[%clk 0:02:44]} 8. g4 {[%clk
0:02:54.3]} 8... Bg7 {[%clk 0:02:43.9]} 9. d3 {[%clk 0:02:53.9]} 9... O-O {[%clk
0:02:43.6]} 10. Be3 {[%clk 0:02:52.7]} 10... f5 {[%clk 0:02:42.7]} 11. exf6
{[%clk 0:02:36.7]} 11... exf6 {[%clk 0:02:42.1]} 12. Qd2 {[%clk 0:02:34]} 12...
Nf7 {[%clk 0:02:36.8]} 13. Bxc5 {[%clk 0:02:30.7]} 13... Re8+ {[%clk 0:02:36.1]}
14. Be3 {[%clk 0:02:28.9]} 14... b5 {[%clk 0:02:35.6]} 15. O-O-O {[%clk
0:02:02.8]} 15... a5 {[%clk 0:02:35.9]} 16. Ne4 {[%clk 0:02:01.5]} 16... f5
{[%clk 0:02:31.8]} 17. gxf5 {[%clk 0:01:59.6]} 17... Bxf5 {[%clk 0:02:32.2]} 18.
Nfg5 {[%clk 0:01:49.7]} 18... Qd5 {[%clk 0:02:21]} 19. Kb1 {[%clk 0:01:37.2]}
19... Nxg5 {[%clk 0:02:17]} 20. Nxg5 {[%clk 0:01:37.3]} 20... b4 {[%clk
0:02:11.7]} 21. h4 {[%clk 0:01:26.3]} 21... h5 {[%clk 0:02:10.1]} 22. Rhe1
{[%clk 0:01:21.1]} 22... a4 {[%clk 0:01:59.8]} 23. Ne4 {[%clk 0:00:16.8]} 23...
Be6 {[%clk 0:01:41.5]} 24. c4 {[%clk 0:00:10.1]} 24... bxc3 {[%clk 0:01:27.6]}
25. Nxc3 {[%clk 0:00:10.3]} 25... Qf5 {[%clk 0:01:15]} 26. Bh6 {[%clk
0:00:08.4]} 26... Bd4 {[%clk 0:01:07.6]} 27. a3 {[%clk 0:00:07.7]} 27... Rab8
{[%clk 0:01:06.1]} 28. Re4 {[%clk 0:00:07]} 28... Qf6 {[%clk 0:00:40.6]} 29. Ka1
{[%clk 0:00:04.8]} 29... Rxb2 {[%clk 0:00:29.3]} 30. Kxb2 {[%clk 0:00:05.7]}
30... Rb8+ {[%clk 0:00:28.8]} 31. Kc1 {[%clk 0:00:04.5]} 31... Bxc3 {[%clk
0:00:26.2]} 32. Qf4 {[%clk 0:00:04]} 32... Bb2+ {[%clk 0:00:10.3]} 33. Kd2
{[%clk 0:00:04.4]} 33... Qc3+ {[%clk 0:00:10]} 34. Ke2 {[%clk 0:00:05]} 34...
Re8 {[%clk 0:00:09.1]} 35. Qe3 {[%clk 0:00:04.3]} 35... Bg4+ {[%clk 0:00:08.7]}
36. f3 {[%clk 0:00:04.5]} 36... Rxe4 {[%clk 0:00:07.8]} 37. Qxe4 {[%clk
0:00:04.7]} 37... Bf5 {[%clk 0:00:06]} 38. Qe8+ {[%clk 0:00:04.2]} 38... Kh7
{[%clk 0:00:06.5]} 39. Bg5 {[%clk 0:00:04]} 39... Qc2+ {[%clk 0:00:05.3]} 40.
Rd2 {[%clk 0:00:04.5]} 40... Bxd3+ {[%clk 0:00:05]} 41. Kf2 {[%clk 0:00:05]}
41... Bd4+ {[%clk 0:00:04.8]} 42. Kg2 {[%clk 0:00:05.4]} 1-0

[Event "*** Titled Tuesday Blitz"]
[Site "Chess.com"]
[Date "2020.03.03"]
[Round "3"]
[White "josiwales"]
[Black "Parhamov"]
[Result "0-1"]
[WhiteElo "2530"]
[BlackElo "3045"]
[TimeControl "180+1"]
[EndTime "13:30:43 PST"]
[Termination "Parhamov won by resignation"]

1. e4 {[%clk 0:02:58.7]} 1... c5 {[%clk 0:02:59.4]} 2. Nc3 {[%clk 0:02:56.8]}
2... Nc6 {[%clk 0:02:58.8]} 3. g3 {[%clk 0:02:55.4]} 3... g6 {[%clk 0:02:58.4]}
4. Bg2 {[%clk 0:02:55.4]} 4... Bg7 {[%clk 0:02:58.7]} 5. d3 {[%clk 0:02:53.9]}
5... e6 {[%clk 0:02:57.5]} 6. Be3 {[%clk 0:02:52.3]} 6... Nd4 {[%clk 0:02:56.2]}
7. Qd2 {[%clk 0:02:51.8]} 7... Ne7 {[%clk 0:02:54.2]} 8. Nd1 {[%clk 0:02:48.2]}
8... d6 {[%clk 0:02:50.9]} 9. c3 {[%clk 0:02:44.6]} 9... Ndc6 {[%clk 0:02:50]}
10. Bh6 {[%clk 0:02:44]} 10... O-O {[%clk 0:02:47.5]} 11. h4 {[%clk 0:02:43.8]}
11... f6 {[%clk 0:02:45.4]} 12. Bxg7 {[%clk 0:02:38.3]} 12... Kxg7 {[%clk
0:02:45.3]} 13. h5 {[%clk 0:02:39.2]} 13... g5 {[%clk 0:02:45.3]} 14. h6+ {[%clk
0:02:39.8]} 14... Kh8 {[%clk 0:02:44.9]} 15. Ne2 {[%clk 0:02:39.9]} 15... e5
{[%clk 0:02:39.7]} 16. Ne3 {[%clk 0:02:38]} 16... f5 {[%clk 0:02:37]} 17. Nd5
{[%clk 0:02:22.8]} 17... f4 {[%clk 0:02:36.8]} 18. gxf4 {[%clk 0:02:14.2]} 18...
gxf4 {[%clk 0:02:36.8]} 19. Bf3 {[%clk 0:01:47.2]} 19... Ng6 {[%clk 0:02:36.2]}
20. O-O-O {[%clk 0:01:41.6]} 20... Nh4 {[%clk 0:02:35.5]} 21. Bh5 {[%clk
0:01:41.6]} 21... Qg5 {[%clk 0:02:33.2]} 22. Rdg1 {[%clk 0:01:16]} 22... Qxh5
{[%clk 0:02:32]} 23. Nexf4 {[%clk 0:01:15.2]} 23... exf4 {[%clk 0:02:21.5]} 24.
Nxf4 {[%clk 0:01:14.2]} 24... Nf3 {[%clk 0:01:46.1]} 25. Nxh5 {[%clk 0:00:42.3]}
25... Nxd2 {[%clk 0:01:45.3]} 26. Kxd2 {[%clk 0:00:43.2]} 26... Ne5 {[%clk
0:01:41.2]} 27. Rg7 {[%clk 0:00:22.8]} 27... Bg4 {[%clk 0:01:35.5]} 28. d4
{[%clk 0:00:05.6]} 28... cxd4 {[%clk 0:01:34.4]} 29. cxd4 {[%clk 0:00:06.5]}
29... Rxf2+ {[%clk 0:01:32.9]} 30. Ke3 {[%clk 0:00:04]} 30... Rf3+ {[%clk
0:01:30.5]} 31. Kd2 {[%clk 0:00:04.3]} 31... Rd3+ {[%clk 0:01:26.3]} 32. Kc2
{[%clk 0:00:04.6]} 32... Rc8+ {[%clk 0:01:16.1]} 33. Kb1 {[%clk 0:00:04.8]}
33... Bxh5 {[%clk 0:00:50.3]} 34. dxe5 {[%clk 0:00:04.8]} 34... Bf3 {[%clk
0:00:24.6]} 35. Rc1 {[%clk 0:00:05]} 35... Rxc1+ {[%clk 0:00:12.6]} 36. Kxc1
{[%clk 0:00:05.9]} 36... dxe5 {[%clk 0:00:13]} 37. Rxb7 {[%clk 0:00:05.2]} 37...
Rd1+ {[%clk 0:00:13.1]} 38. Kc2 {[%clk 0:00:03.7]} 38... Bxe4+ {[%clk
0:00:13.3]} 39. Kxd1 {[%clk 0:00:04.2]} 39... Bxb7 {[%clk 0:00:14.2]} 40. Kd2
{[%clk 0:00:05]} 40... Kg8 {[%clk 0:00:15.1]} 41. Ke3 {[%clk 0:00:05.5]} 41...
Kf7 {[%clk 0:00:16]} 42. b4 {[%clk 0:00:05.3]} 42... Kg6 {[%clk 0:00:16.9]} 43.
a4 {[%clk 0:00:06.2]} 43... Kxh6 {[%clk 0:00:17.8]} 44. b5 {[%clk 0:00:07.1]}
44... Kg6 {[%clk 0:00:18.7]} 45. a5 {[%clk 0:00:08]} 45... h5 {[%clk 0:00:19.6]}
46. a6 {[%clk 0:00:08.9]} 46... Ba8 {[%clk 0:00:19.8]} 47. Kf2 {[%clk
0:00:08.7]} 47... h4 {[%clk 0:00:20.1]} 0-1

[Event "*** Titled Tuesday Blitz"]
[Site "Chess.com"]
[Date "2020.03.03"]
[Round "3"]
[White "ChessMavenYeti"]
[Black "Harry_Rakkel"]
[Result "1-0"]
[WhiteElo "2241"]
[BlackElo "2538"]
[TimeControl "180+1"]
[EndTime "13:30:46 PST"]
[Termination "ChessMavenYeti won on time"]

1. d4 {[%clk 0:02:36.6]} 1... Nf6 {[%clk 0:02:58.9]} 2. Bf4 {[%clk 0:02:36]}
2... b6 {[%clk 0:02:56.1]} 3. Nc3 {[%clk 0:02:35.5]} 3... Bb7 {[%clk 0:02:53.7]}
4. Qd3 {[%clk 0:02:33]} 4... e6 {[%clk 0:02:48.1]} 5. e4 {[%clk 0:02:32.6]} 5...
Bb4 {[%clk 0:02:47.7]} 6. f3 {[%clk 0:02:29.9]} 6... d5 {[%clk 0:02:39.1]} 7. e5
{[%clk 0:02:21.7]} 7... Nfd7 {[%clk 0:02:38]} 8. O-O-O {[%clk 0:02:18.9]} 8...
h6 {[%clk 0:02:29.5]} 9. Nge2 {[%clk 0:02:17.2]} 9... Nc6 {[%clk 0:02:23.1]} 10.
h4 {[%clk 0:02:08.1]} 10... Na5 {[%clk 0:02:21.2]} 11. h5 {[%clk 0:02:04.6]}
11... a6 {[%clk 0:02:20.4]} 12. a3 {[%clk 0:02:02.9]} 12... Be7 {[%clk
0:02:17.1]} 13. Kb1 {[%clk 0:01:59.9]} 13... c5 {[%clk 0:02:15]} 14. g4 {[%clk
0:01:52.5]} 14... c4 {[%clk 0:02:02.1]} 15. Qe3 {[%clk 0:01:51.8]} 15... b5
{[%clk 0:02:01]} 16. Rg1 {[%clk 0:01:48.6]} 16... Nc6 {[%clk 0:01:43.4]} 17. g5
{[%clk 0:01:46.5]} 17... hxg5 {[%clk 0:01:40.5]} 18. Bxg5 {[%clk 0:01:45.4]}
18... Rxh5 {[%clk 0:01:37.5]} 19. Bxe7 {[%clk 0:01:43.9]} 19... Qxe7 {[%clk
0:01:19.7]} 20. Rxg7 {[%clk 0:01:43.5]} 20... O-O-O {[%clk 0:01:19.4]} 21. Nf4
{[%clk 0:01:40.5]} 21... Rh2 {[%clk 0:01:01.5]} 22. Be2 {[%clk 0:01:10.4]} 22...
b4 {[%clk 0:00:46.7]} 23. axb4 {[%clk 0:01:07.3]} 23... Nxb4 {[%clk 0:00:45.4]}
24. Rdg1 {[%clk 0:01:01.3]} 24... Nf8 {[%clk 0:00:41.3]} 25. Ng6 {[%clk
0:00:52.1]} 25... Nxg6 {[%clk 0:00:39.1]} 26. R1xg6 {[%clk 0:00:51.3]} 26... Bc6
{[%clk 0:00:37.2]} 27. Rf6 {[%clk 0:00:50.3]} 27... Be8 {[%clk 0:00:36.6]} 28.
Qf4 {[%clk 0:00:37.8]} 28... Rh1+ {[%clk 0:00:32.3]} 29. Bd1 {[%clk 0:00:36.7]}
29... Rd7 {[%clk 0:00:26.4]} 30. Rg8 {[%clk 0:00:35.2]} 30... Kb7 {[%clk
0:00:24]} 31. Qg3 {[%clk 0:00:32.8]} 31... Ka7 {[%clk 0:00:22]} 32. Qg2 {[%clk
0:00:33]} 32... Rh4 {[%clk 0:00:19.7]} 33. Qg7 {[%clk 0:00:32.4]} 33... Rh1
{[%clk 0:00:16.5]} 34. Qf8 {[%clk 0:00:30.3]} 34... Qxf8 {[%clk 0:00:13]} 35.
Rxf8 {[%clk 0:00:29.6]} 35... Re7 {[%clk 0:00:13]} 36. Kc1 {[%clk 0:00:29.6]}
36... Kb6 {[%clk 0:00:09.6]} 37. f4 {[%clk 0:00:29.8]} 37... Kc7 {[%clk
0:00:09.3]} 38. f5 {[%clk 0:00:30]} 38... Kd8 {[%clk 0:00:09.4]} 39. fxe6 {[%clk
0:00:29.6]} 39... fxe6 {[%clk 0:00:09.4]} 40. Ne2 {[%clk 0:00:24.5]} 40... a5
{[%clk 0:00:06.8]} 41. Nf4 {[%clk 0:00:24.6]} 41... Na2+ {[%clk 0:00:03.4]} 42.
Kd2 {[%clk 0:00:23.3]} 42... Rh2+ {[%clk 0:00:04]} 43. Ke3 {[%clk 0:00:22.3]}
43... Kd7 {[%clk 0:00:03]} 44. Bg4 {[%clk 0:00:18.5]} 44... c3 {[%clk
0:00:02.4]} 45. bxc3 {[%clk 0:00:17.4]} 45... a4 {[%clk 0:00:02]} 46. Nxd5
{[%clk 0:00:17.5]} 1-0

[Event "*** Titled Tuesday Blitz"]
[Site "Chess.com"]
[Date "2020.03.03"]
[Round "3"]
[White "shanemelaughcm"]
[Black "GianmarcoVaR"]
[Result "1/2-1/2"]
[WhiteElo "2284"]
[BlackElo "2557"]
[TimeControl "180+1"]
[EndTime "13:30:48 PST"]
[Termination "Game drawn by repetition"]

1. c4 {[%clk 0:03:00.5]} 1... Nf6 {[%clk 0:02:46.7]} 2. Nc3 {[%clk 0:03:00]}
2... e5 {[%clk 0:02:47]} 3. Nf3 {[%clk 0:02:59.1]} 3... Nc6 {[%clk 0:02:45.3]}
4. e4 {[%clk 0:02:57.6]} 4... Bb4 {[%clk 0:02:44.3]} 5. d3 {[%clk 0:02:55.5]}
5... d6 {[%clk 0:02:43.5]} 6. Be2 {[%clk 0:02:55.4]} 6... a5 {[%clk 0:02:41.9]}
7. O-O {[%clk 0:02:55.6]} 7... h6 {[%clk 0:02:41.8]} 8. Be3 {[%clk 0:02:50.5]}
8... O-O {[%clk 0:02:40.7]} 9. a3 {[%clk 0:02:47.3]} 9... Bxc3 {[%clk
0:02:39.3]} 10. bxc3 {[%clk 0:02:48.2]} 10... Bg4 {[%clk 0:02:39.3]} 11. Ne1
{[%clk 0:02:45]} 11... Bxe2 {[%clk 0:02:35]} 12. Qxe2 {[%clk 0:02:45.9]} 12...
a4 {[%clk 0:02:33.2]} 13. f4 {[%clk 0:02:41.2]} 13... exf4 {[%clk 0:02:32.7]}
14. Bxf4 {[%clk 0:02:39.7]} 14... Re8 {[%clk 0:02:27.3]} 15. Qf2 {[%clk
0:02:35]} 15... Ne5 {[%clk 0:02:26.1]} 16. h3 {[%clk 0:02:28.4]} 16... Qe7
{[%clk 0:02:21.4]} 17. Rb1 {[%clk 0:02:23.5]} 17... b6 {[%clk 0:02:19]} 18. Bxh6
{[%clk 0:02:01.5]} 18... Nxe4 {[%clk 0:02:18.4]} 19. dxe4 {[%clk 0:01:59]} 19...
gxh6 {[%clk 0:02:18.9]} 20. Nf3 {[%clk 0:01:49.6]} 20... Ra5 {[%clk 0:02:07]}
21. Nd4 {[%clk 0:01:49]} 21... Kh8 {[%clk 0:01:36.9]} 22. Qe2 {[%clk 0:01:15.5]}
22... Rg8 {[%clk 0:01:28.5]} 23. Rf5 {[%clk 0:01:12.8]} 23... Rg6 {[%clk
0:01:12.1]} 24. Rbf1 {[%clk 0:01:08.8]} 24... Ra8 {[%clk 0:01:12.2]} 25. Rh5
{[%clk 0:00:55]} 25... Rag8 {[%clk 0:01:12.4]} 26. Nf5 {[%clk 0:00:53.3]} 26...
Rxg2+ {[%clk 0:00:54.6]} 27. Qxg2 {[%clk 0:00:53.4]} 27... Rxg2+ {[%clk
0:00:55.5]} 28. Kxg2 {[%clk 0:00:54.3]} 28... Qd7 {[%clk 0:00:56.1]} 29. Rxh6+
{[%clk 0:00:54.3]} 29... Kg8 {[%clk 0:00:56.1]} 30. Kh2 {[%clk 0:00:46.1]} 30...
Ng6 {[%clk 0:00:30.8]} 31. Rg1 {[%clk 0:00:45.2]} 31... Qe8 {[%clk 0:00:29.2]}
32. Rg4 {[%clk 0:00:41.4]} 32... Qe5+ {[%clk 0:00:29.2]} 33. Kg2 {[%clk
0:00:41]} 33... Kf8 {[%clk 0:00:25.9]} 34. h4 {[%clk 0:00:33.9]} 34... Qxc3
{[%clk 0:00:07.8]} 35. h5 {[%clk 0:00:34]} 35... Qd2+ {[%clk 0:00:07.8]} 36. Kh3
{[%clk 0:00:23.3]} 36... Qd3+ {[%clk 0:00:06.4]} 37. Kg2 {[%clk 0:00:18.8]}
37... Qc2+ {[%clk 0:00:04.9]} 38. Kg3 {[%clk 0:00:17.1]} 38... Qc3+ {[%clk
0:00:04.9]} 39. Kg2 {[%clk 0:00:16.9]} 39... Qc2+ {[%clk 0:00:02.9]} 40. Kh3
{[%clk 0:00:15]} 40... Qd3+ {[%clk 0:00:02.1]} 41. Kg2 {[%clk 0:00:11.4]} 41...
Qc2+ {[%clk 0:00:01.8]} 1/2-1/2

[Event "*** Titled Tuesday Blitz"]
[Site "Chess.com"]
[Date "2020.03.03"]
[Round "3"]
[White "AndreyNeves"]
[Black "Everyfishknows"]
[Result "0-1"]
[WhiteElo "2202"]
[BlackElo "2415"]
[TimeControl "180+1"]
[EndTime "13:30:48 PST"]
[Termination "Everyfishknows won by checkmate"]

1. d4 {[%clk 0:02:40.3]} 1... Nf6 {[%clk 0:02:59.6]} 2. c4 {[%clk 0:02:34.7]}
2... e6 {[%clk 0:02:58.2]} 3. Nc3 {[%clk 0:02:32.8]} 3... Bb4 {[%clk 0:02:57.8]}
4. e3 {[%clk 0:02:29.4]} 4... O-O {[%clk 0:02:57.6]} 5. Ne2 {[%clk 0:02:26.8]}
5... d5 {[%clk 0:02:55.5]} 6. a3 {[%clk 0:02:26.5]} 6... Be7 {[%clk 0:02:56.1]}
7. cxd5 {[%clk 0:02:25.8]} 7... exd5 {[%clk 0:02:57]} 8. Nf4 {[%clk 0:02:19.5]}
8... c6 {[%clk 0:02:55.4]} 9. Bd3 {[%clk 0:02:19.5]} 9... Nbd7 {[%clk
0:02:51.4]} 10. O-O {[%clk 0:02:17.3]} 10... Re8 {[%clk 0:02:51.3]} 11. Qc2
{[%clk 0:02:13.9]} 11... Bd6 {[%clk 0:02:50]} 12. Bd2 {[%clk 0:02:05.4]} 12...
Nf8 {[%clk 0:02:46.3]} 13. b4 {[%clk 0:02:03]} 13... Ne6 {[%clk 0:02:27]} 14.
Nce2 {[%clk 0:01:55]} 14... Qc7 {[%clk 0:02:05.9]} 15. g3 {[%clk 0:01:50.6]}
15... Ng5 {[%clk 0:02:04.5]} 16. f3 {[%clk 0:01:43.6]} 16... h6 {[%clk
0:01:25.5]} 17. Rac1 {[%clk 0:01:41.1]} 17... Bd7 {[%clk 0:00:52.3]} 18. Bf5
{[%clk 0:01:28.8]} 18... Bxf5 {[%clk 0:00:45.8]} 19. Qxf5 {[%clk 0:01:27.9]}
19... Qd7 {[%clk 0:00:38.4]} 20. Qxd7 {[%clk 0:01:27]} 20... Nxd7 {[%clk
0:00:39.3]} 21. Kg2 {[%clk 0:01:19.3]} 21... Nb6 {[%clk 0:00:36.9]} 22. h4
{[%clk 0:01:15]} 22... Ne6 {[%clk 0:00:36.8]} 23. Nxe6 {[%clk 0:01:06.7]} 23...
Rxe6 {[%clk 0:00:36.4]} 24. Kf2 {[%clk 0:01:00.3]} 24... Nc4 {[%clk 0:00:34.8]}
25. Rfd1 {[%clk 0:00:56.3]} 25... Rae8 {[%clk 0:00:34.4]} 26. Rxc4 {[%clk
0:00:51.5]} 26... dxc4 {[%clk 0:00:34.1]} 27. e4 {[%clk 0:00:51.3]} 27... b5
{[%clk 0:00:30.2]} 28. Bc3 {[%clk 0:00:41.4]} 28... Bc7 {[%clk 0:00:27.2]} 29.
d5 {[%clk 0:00:39.9]} 29... cxd5 {[%clk 0:00:20.5]} 30. Rxd5 {[%clk 0:00:39.8]}
30... a6 {[%clk 0:00:11.2]} 31. h5 {[%clk 0:00:39.2]} 31... Rd8 {[%clk
0:00:09.5]} 32. Rxd8+ {[%clk 0:00:21.9]} 32... Bxd8 {[%clk 0:00:10.4]} 33. Nf4
{[%clk 0:00:22]} 33... Rd6 {[%clk 0:00:09.7]} 34. Nd5 {[%clk 0:00:22]} 34... f5
{[%clk 0:00:08.6]} 35. Ke3 {[%clk 0:00:20.6]} 35... Kf7 {[%clk 0:00:08]} 36. Be5
{[%clk 0:00:18.7]} 36... Rd7 {[%clk 0:00:08.2]} 37. Kd4 {[%clk 0:00:16.4]} 37...
Ke6 {[%clk 0:00:06.9]} 38. Kc5 {[%clk 0:00:15.6]} 38... Kxe5 {[%clk 0:00:05.7]}
39. f4+ {[%clk 0:00:15.2]} 39... Kxe4 {[%clk 0:00:04.7]} 40. Nb6 {[%clk
0:00:15.4]} 40... Bxb6+ {[%clk 0:00:03.4]} 41. Kxb6 {[%clk 0:00:15.6]} 41... Rd3
{[%clk 0:00:04.3]} 42. Kc6 {[%clk 0:00:16.3]} 42... Rxa3 {[%clk 0:00:05.2]} 43.
Kb6 {[%clk 0:00:16.8]} 43... c3 {[%clk 0:00:05.2]} 44. Kc5 {[%clk 0:00:17.7]}
44... c2 {[%clk 0:00:06.1]} 45. Kb6 {[%clk 0:00:18.6]} 45... c1=Q {[%clk
0:00:07]} 46. Ka7 {[%clk 0:00:19.5]} 46... Rc3 {[%clk 0:00:07.5]} 47. g4 {[%clk
0:00:20.3]} 47... Rc7+ {[%clk 0:00:08]} 48. Kxa6 {[%clk 0:00:20.4]} 48... Qc6+
{[%clk 0:00:08.5]} 49. Ka5 {[%clk 0:00:20]} 49... Ra7# {[%clk 0:00:09.4]} 0-1